bitfinex/quotes_ETHUSD_20230118
["timestamp","ask_amount","ask_price","bid_price","bid_amount"]
[1674058246706,7.99237,1537.5,1536.4,1.0]
[1674058246968,7.08837,1537.5,1536.4,1.0]
[1674058247124,7.08837,1537.5,1536.5,6.2443099]
[1674058247339,0.096,1537.5,1537.0,0.01]
[1674058247547,6.99209,1537.5,1537.0,0.01]
[1674058247810,10.08809,1537.5,1537.0,0.02107254]
[1674058248033,3.096,1537.5,1537.0,0.02107254]
[1674058248245,3.0,1537.5,1537.0,0.02107254]
[1674058249207,3.0,1537.5,1537.0,0.01]
[1674058249208,0.488,1537.4,1537.0,0.01]
[1674058249407,13.00998,1537.3,1537.0,0.01]
[1674058249570,6.60099,1537.3,1537.0,0.01]
[1674058249785,3.0,1537.2,1537.0,0.01]
[1674058250222,0.5779,1537.5,1537.0,0.52920465]
[1674058250223,0.096,1537.4,1537.0,0.52920465]
[1674058250554,27.9061,1537.6,1537.0,0.52920465]
[1674058250768,27.9061,1537.6,1537.1,0.49588277]
[1674058250922,27.9061,1537.6,1537.2,2.015]
[1674058251126,27.9061,1537.6,1537.2,6.0534093]
[1674058251363,0.096,1537.6,1537.5,2.015]
[1674058251667,25.2781,1538.1,1537.5,2.53420465]
[1674058252028,25.3741,1538.1,1537.5,2.53420465]
[1674058252236,3.0,1537.9,1537.5,0.51920465]
[1674058253124,0.096,1538.0,1537.2,5.081]
[1674058253366,0.4878,1537.9,1537.2,0.004]
[1674058253578,3.0,1537.3,1537.0,0.52207814]
[1674058254213,3.0,1537.3,1537.0,0.01]
[1674058254543,26.0808,1537.4,1537.0,0.01]
[1674058254766,3.0,1537.2,1537.0,0.01]
[1674058255121,3.0,1537.2,1537.1,0.51207814]
[1674058255402,3.0,1537.2,1537.0,0.01]
[1674058255403,9.99346,1537.2,1537.0,0.01]
[1674058255539,3.584,1537.2,1537.0,0.01]
[1674058255752,9.50543,1537.2,1537.0,0.01]
[1674058256000,9.60143,1537.2,1537.0,0.01]
[1674058256172,3.096,1537.2,1537.0,0.01]
[1674058256409,0.002,1537.3,1537.1,1.515]
[1674058256594,0.002,1537.3,1537.2,0.488]
[1674058256595,0.075,1537.3,1537.2,0.488]
[1674058256805,26.1468,1538.0,1537.2,15.01114782]
[1674058257076,26.1468,1538.0,1537.3,9.73937304]
[1674058257382,26.1468,1538.0,1537.4,6.50415]
[1674058257532,26.1468,1538.0,1537.5,6.0039]
[1674058257748,26.1468,1538.0,1537.7,1.509]
[1674058258223,26.1468,1538.0,1537.7,2.02148782]
[1674058258436,26.1468,1538.0,1537.8,0.01563767]
[1674058258800,0.066,1538.0,1537.8,0.52812549]
[1674058259010,0.066,1538.5,1537.9,1.517]
[1674058259236,0.066,1538.8,1538.1,1.517]
[1674058259431,10.1412,1538.9,1538.1,1.517]
[1674058259432,9.7197,1538.9,1538.2,1.0]
[1674058259805,0.066,1538.9,1538.2,4.58186789]
[1674058259967,0.66284013,1539.0,1538.3,0.58186789]
[1674058259968,0.04917,1538.8,1538.3,0.58186789]
[1674058260169,0.04917,1538.8,1538.1,0.066]
[1674058260373,0.04917,1538.8,1538.0,9.50192]
[1674058260374,0.04917,1538.8,1538.0,9.56792]
[1674058260623,0.04917,1538.8,1538.1,0.00221727]
[1674058261034,0.04917,1538.8,1538.0,9.50191]
[1674058261035,26.54917,1538.8,1538.0,9.52012727]
[1674058261370,26.61517,1538.8,1538.1,1.0]
[1674058261813,26.61517,1538.8,1538.0,3.01821727]
[1674058261965,26.61517,1538.8,1538.0,2.95221727]
[1674058262321,26.61517,1538.8,1537.9,4.59]
[1674058262643,19.5002,1538.5,1537.8,0.066]
[1674058262789,0.04917,1538.4,1537.5,10.79809842]
[1674058263000,0.04917,1538.4,1537.6,10.73160842]
[1674058263211,0.04917,1538.4,1537.7,4.24312608]
[1674058263419,0.04917,1538.4,1538.0,1.0]
[1674058263681,0.04917,1538.4,1538.0,11.72995842]
[1674058263845,26.566,1538.8,1538.2,6.50079]
[1674058264058,0.066,1538.8,1538.3,4.517]
[1674058264386,1.73966498,1539.2,1538.3,11.01743]
[1674058264387,36.67354498,1539.2,1538.3,11.01743]
[1674058264716,12.99472,1539.1,1538.3,3.066]
[1674058264894,12.99472,1539.1,1538.2,8.37799352]
[1674058264895,6.50033727,1539.0,1538.2,8.37799352]
[1674058265105,13.06445727,1539.0,1538.2,0.066]
[1674058265317,0.06821727,1539.0,1538.2,14.00208]
[1674058265582,6.50000727,1539.0,1538.2,6.56698]
[1674058265749,6.56600727,1539.0,1538.2,6.56698]
[1674058265959,13.06379727,1539.0,1538.2,0.066]
[1674058266179,6.56600727,1539.0,1538.1,18.80306094]
[1674058266372,0.06821727,1539.0,1538.3,1.0]
[1674058266598,0.06821727,1539.0,1538.2,0.066]
[1674058266599,2.524,1538.9,1538.2,0.066]
[1674058266810,0.4875,1538.8,1538.4,20.09367126]
[1674058267056,2.34261433,1538.2,1538.0,7.98367126]
[1674058267375,2.34261433,1538.2,1538.0,0.056]
[1674058267694,2.34261433,1538.2,1537.6,0.066]
[1674058267857,2.34261433,1538.2,1537.6,13.00705]
[1674058268067,2.34261433,1538.2,1537.6,17.29466946]
[1674058268315,2.34261433,1538.2,1537.7,1.0]
[1674058268479,2.34261433,1538.2,1537.8,13.00532]
[1674058268693,2.34261433,1538.2,1537.8,13.06132]
[1674058269227,2.34261433,1538.2,1538.0,1.0]
[1674058269421,2.34261433,1538.2,1538.1,13.49084]
[1674058269632,2.34261433,1538.2,1538.1,0.056]
[1674058269889,2.34261433,1538.2,1537.8,0.066]
[1674058270100,2.34261433,1538.2,1537.6,0.056]
[1674058270425,6.51880811,1538.1,1537.5,1.0]
[1674058270580,6.58470811,1538.1,1537.5,1.0]
[1674058270794,13.08623811,1538.1,1537.4,0.066]
[1674058271014,0.4878,1538.0,1537.0,10.81342946]
[1674058271240,6.50297,1537.8,1537.0,6.57181]
[1674058271527,6.50381,1537.6,1537.0,0.076]
[1674058271736,0.066,1537.6,1537.0,7.5161]
[1674058271988,25.668,1538.0,1537.1,1.517]
[1674058272154,32.23598,1538.0,1537.0,1.076]
[1674058272524,32.23598,1538.0,1537.0,1.01]
[1674058272525,13.00699,1537.7,1537.0,1.01]
[1674058272743,13.02483811,1537.6,1537.0,0.01]
[1674058272895,0.08317811,1537.6,1537.0,0.01]
[1674058273109,0.01717811,1537.6,1537.0,0.01]
[1674058273456,0.01717811,1537.6,1537.0,13.0222]
[1674058273783,0.066,1537.9,1537.1,0.4881]
[1674058273950,6.50245,1537.9,1537.1,9.50574]
[1674058274162,6.50245,1537.9,1537.1,3.066]
[1674058274163,1.0,1537.8,1537.1,3.066]
[1674058274415,6.50373,1537.6,1537.0,0.076]
[1674058274627,26.3377,1537.5,1537.0,0.01]
[1674058274864,32.9078,1537.5,1537.0,0.01]
[1674058275044,26.4037,1537.5,1537.0,0.01]
[1674058275262,32.90803,1537.5,1537.0,0.01]
[1674058275662,26.4037,1537.5,1537.0,0.01]
[1674058275867,26.4037,1537.5,1537.0,13.02222]
[1674058276156,26.4037,1537.5,1537.0,13.08822]
[1674058276307,0.066,1537.5,1537.2,6.50524]
[1674058276523,26.0403,1538.0,1537.2,6.56124]
[1674058276712,26.1063,1538.0,1537.2,17.29809946]
[1674058276918,26.1063,1538.0,1537.3,3.488]
[1674058277178,26.1063,1538.0,1537.5,1.0]
[1674058277386,0.066,1538.0,1537.6,2.0049]
[1674058277601,2.34261433,1538.2,1537.7,19.50939]
[1674058277761,2.34261433,1538.2,1537.9,19.50684]
[1674058277986,2.34261433,1538.2,1537.9,19.56284]
[1674058278188,0.53340229,1539.2,1539.1,0.58580841]
[1674058278397,33.7668704,1539.2,1539.1,0.58580841]
[1674058278660,40.3297904,1539.2,1539.1,0.58580841]
[1674058278822,40.8171904,1539.2,1539.1,0.58580841]
[1674058279027,40.8171904,1539.2,1539.1,0.00080841]
[1674058279238,40.8171904,1539.2,1538.3,0.126]
[1674058279239,1.0,1539.1,1538.2,7.27253744]
[1674058279448,6.49873,1538.8,1538.2,3.066]
[1674058279710,0.01717811,1538.7,1538.1,3.0]
[1674058279863,6.51624811,1538.7,1538.0,0.066]
[1674058280076,0.08317811,1538.7,1538.0,1.0]
[1674058280328,0.01717811,1538.7,1538.0,7.50192]
[1674058280498,0.01717811,1538.7,1538.0,40.50905707]
[1674058280724,6.51619811,1538.7,1538.0,0.066]
[1674058280930,17.28775555,1538.7,1537.7,0.066]
[1674058281142,17.28775555,1538.7,1537.6,0.066]
[1674058281143,1.0,1538.5,1537.6,0.066]
[1674058281388,6.50068,1538.3,1537.5,4.0]
[1674058281595,6.50167,1538.1,1537.4,0.066]
[1674058281810,17.27587744,1538.1,1537.2,40.50905707]
[1674058282027,6.56767,1538.1,1537.2,47.01420707]
[1674058282237,6.56767,1538.1,1537.3,7.50482]
[1674058282386,0.066,1538.1,1537.4,4.19801068]
[1674058282598,0.066,1538.4,1537.7,1.517]
[1674058282855,27.2727,1538.6,1537.9,19.50621]
[1674058283027,27.2727,1538.6,1538.1,6.5014]
[1674058283237,27.2727,1538.6,1538.2,1.0]
[1674058283661,27.2727,1538.6,1538.2,3.0]
[1674058284081,0.01717811,1538.5,1538.1,0.066]
[1674058284297,0.01717811,1538.5,1537.8,7.05653]
[1674058284525,6.51708811,1538.5,1537.8,0.066]
[1674058284744,17.28953555,1538.5,1537.7,0.066]
[1674058284912,13.08299811,1538.5,1537.6,6.56957]
[1674058285281,0.08317811,1538.5,1537.7,7.50321]
[1674058285491,13.01708811,1538.5,1537.7,6.56921]
[1674058285821,1.01628703,1538.3,1537.7,13.07214]
[1674058286117,0.69469551,1538.2,1537.8,1.0]
[1674058286369,0.69469551,1538.2,1537.8,3.0]
[1674058286499,0.6775174,1538.3,1537.8,56.44846707]
[1674058286710,1.08218418,1538.5,1537.8,60.70615684]
[1674058286957,0.67742303,1538.5,1538.0,19.50483]
[1674058287148,27.95012303,1538.6,1538.2,13.00178]
[1674058287360,27.95012303,1538.6,1538.2,0.066]
[1674058287535,2.83967253,1538.5,1538.0,0.066]
[1674058287745,1.80670047,1538.4,1537.8,6.56862]
[1674058288018,0.67765734,1538.3,1537.8,0.066]
[1674058288162,1.82391745,1538.3,1537.8,6.50277]
[1674058288378,0.67765734,1538.3,1537.8,6.56859]
[1674058288583,0.066,1538.5,1537.8,54.00233707]
[1674058288853,0.69480468,1538.4,1537.8,6.56859]
[1674058289168,0.69480468,1538.4,1537.8,14.07138]
[1674058289494,0.67762657,1538.4,1537.8,14.07138]
[1674058289698,3.45412894,1538.5,1537.8,14.07138]
[1674058289858,29.6441027,1538.6,1538.0,19.50483]
[1674058290062,29.6441027,1538.6,1538.1,1.0]
[1674058290063,27.95067495,1538.6,1538.1,1.0]
[1674058290315,27.2727,1538.6,1538.2,13.00178]
[1674058290486,0.066,1538.6,1538.4,13.00052]
[1674058290706,0.67797495,1538.8,1538.4,13.06652]
[1674058291115,1.12878203,1538.8,1538.5,4.0]
[1674058291326,0.05191103,1538.9,1538.6,19.49823]
[1674058291580,0.05191103,1538.9,1538.6,19.56423]
[1674058291904,0.723825,1539.2,1538.8,19.49571]
[1674058292060,0.723825,1539.2,1539.0,21.01016]
[1674058292061,0.04600229,1539.2,1539.0,21.01016]
[1674058292269,0.04600229,1539.2,1539.0,61.51921707]
[1674058292497,0.04600229,1539.2,1539.1,3.0]
[1674058292746,0.04600229,1539.2,1539.1,15.9946]
[1674058292965,0.04600229,1539.2,1539.1,16.548]
[1674058293174,2.29e-06,1539.2,1539.1,56.99105707]
[1674058293492,0.61700792,1539.8,1539.2,1.0]
[1674058293676,1.97122112,1539.8,1539.5,1.517]
[1674058293885,0.61700792,1539.8,1539.5,40.44305707]
[1674058294058,1.09600229,1540.1,1539.6,19.48557]
[1674058294266,1.09600229,1540.1,1539.7,1.0]
[1674058294515,1.09600229,1540.1,1539.8,13.47572]
[1674058294746,1.09600229,1540.1,1539.9,3.0]
[1674058295076,0.066,1540.4,1540.0,22.4837]
[1674058295215,3.52702473,1540.6,1540.2,1.524]
[1674058295594,3.52702473,1540.6,1540.2,35.86632256]
[1674058295595,1.1807787,1540.6,1540.2,35.86632256]
[1674058295736,1.1147787,1540.6,1540.3,2.94407152]
[1674058295955,1.1147787,1540.6,1540.4,6.49182]
[1674058296265,1.1147787,1540.6,1540.5,1.0]
[1674058296496,1.1147787,1540.6,1540.4,53.17572353]
[1674058296892,1.1147787,1540.6,1540.5,1.0]
[1674058297274,0.71687914,1541.0,1540.6,1.114]
[1674058297418,0.71687914,1541.0,1540.8,1.516]
[1674058297419,0.04363006,1541.0,1540.8,1.516]
[1674058297632,0.73883666,1541.5,1540.9,1.4869]
[1674058297897,1.00924129,1541.6,1541.1,14.50164]
[1674058298063,1.6993031,1541.5,1541.1,0.066]
[1674058298273,0.6728837,1541.4,1541.1,0.59536113]
[1674058298692,0.01717811,1541.4,1541.0,40.50905707]
[1674058298902,1.80027814,1541.3,1541.0,0.066]
[1674058299159,0.67051203,1541.4,1540.7,41.36220978]
[1674058299332,0.73618012,1541.5,1540.9,6.48964]
[1674058299681,1.0339318,1541.6,1541.2,7.99742]
[1674058299682,1.12735586,1541.3,1541.2,7.99742]
[1674058299996,0.02830691,1541.6,1541.3,1.0]
[1674058300207,0.02830691,1541.6,1541.4,6.4876]
[1674058300378,0.66230691,1541.6,1541.4,0.066]
[1674058300593,0.66230691,1541.6,1541.4,0.052]
[1674058300778,0.66230691,1541.6,1541.1,0.99886938]
[1674058300993,0.01717811,1541.5,1540.8,0.066]
[1674058301249,10.57241139,1541.5,1540.7,40.50905707]
[1674058301465,10.57241139,1541.5,1540.7,0.066]
[1674058301466,0.4867,1541.4,1540.7,0.066]
[1674058301777,12.97698,1541.2,1540.3,0.066]
[1674058301991,7.04129,1541.2,1540.4,1.0]
[1674058302204,0.066,1541.2,1540.5,0.58212931]
[1674058302356,26.6617,1541.3,1540.5,41.02518638]
[1674058302566,26.6617,1541.3,1540.5,41.09118638]
[1674058302776,33.14973,1541.3,1540.6,0.58212931]
[1674058302986,1.0,1541.2,1540.5,0.066]
[1674058303300,7.97543,1541.2,1540.3,0.066]
[1674058303618,7.97543,1541.2,1540.2,40.44305707]
[1674058303619,4.06797328,1541.1,1540.2,0.066]
[1674058303831,0.4868,1541.0,1539.9,4.05899188]
[1674058304067,6.48981,1540.9,1540.0,7.49347]
[1674058304282,0.066,1540.9,1540.1,4.05732923]
[1674058304511,69.93369309,1541.0,1540.1,10.55021923]
[1674058304743,6.48976,1540.9,1540.2,0.58212931]
[1674058304957,6.48976,1540.9,1540.0,11.5519475]
[1674058304958,6.55576,1540.9,1540.0,1.066]
[1674058305106,6.55576,1540.9,1540.0,6.49347]
[1674058305320,6.4908,1540.7,1540.0,0.066]
[1674058305531,0.01717811,1540.6,1540.0,0.58212931]
[1674058305736,0.01717811,1540.6,1540.0,7.07560931]
[1674058306005,0.01717811,1540.6,1540.1,1.0]
[1674058306370,0.01717811,1540.6,1540.2,0.58212931]
[1674058306581,0.01717811,1540.6,1540.0,0.066]
[1674058306582,0.01717811,1540.6,1540.0,3.0]
[1674058306846,0.01717811,1540.6,1540.1,1.58212931]
[1674058307154,0.01717811,1540.6,1540.0,3.066]
[1674058307316,0.01717811,1540.6,1540.0,3.0]
[1674058307526,0.01717811,1540.6,1540.0,9.49347]
[1674058307743,6.50820811,1540.6,1540.0,3.066]
[1674058307950,17.13321139,1540.6,1539.8,3.066]
[1674058308202,6.49222,1540.4,1539.7,0.64812931]
[1674058308423,6.49222,1540.4,1539.7,0.58212931]
[1674058308424,6.55822,1540.4,1539.7,0.58212931]
[1674058308632,13.05044,1540.4,1539.8,0.58212931]
[1674058308863,1.0,1540.3,1539.5,6.56157]
[1674058309014,6.50994811,1540.2,1539.6,0.58212931]
[1674058309368,6.50994811,1540.2,1539.3,40.44305707]
[1674058309369,0.4871,1540.1,1539.3,47.00549707]
[1674058309579,6.49366,1540.0,1539.3,41.09118638]
[1674058309785,0.01717811,1539.9,1539.3,41.09118638]
[1674058310216,13.00517811,1539.9,1539.3,0.066]
[1674058310403,13.07117811,1539.9,1539.1,0.64812931]
[1674058310752,17.62635139,1539.9,1539.1,0.58212931]
[1674058310921,13.55837811,1539.9,1539.1,0.58212931]
[1674058311134,0.066,1539.9,1539.1,17.62714752]
[1674058311386,6.55916,1540.1,1539.1,17.69314752]
[1674058311538,12.98786,1539.9,1539.1,17.69775457]
[1674058311747,0.066,1539.9,1539.2,1.0]
[1674058311979,6.98108,1540.0,1539.4,12.99172]
[1674058311980,0.066,1540.0,1539.4,12.99172]
[1674058312199,0.066,1540.2,1539.4,13.05772]
[1674058312410,7.76443,1540.3,1539.4,17.11564717]
[1674058312411,6.55843,1540.3,1539.4,17.11564717]
[1674058312601,6.49269,1540.2,1539.4,13.05772]
[1674058312811,6.51039811,1540.1,1539.4,0.066]
[1674058313040,6.57639811,1540.1,1539.5,0.58212931]
[1674058313869,13.06961811,1540.1,1539.5,0.58212931]
[1674058314311,13.55671811,1540.1,1539.5,0.58212931]
[1674058314869,13.06961811,1540.1,1539.3,14.05828]
[1674058315028,13.06961811,1540.1,1539.3,0.066]
[1674058315219,19.48353,1539.8,1539.2,0.066]
[1674058315428,0.01717811,1539.7,1539.2,6.49673]
[1674058315636,48.91567811,1539.7,1539.2,0.066]
[1674058315944,35.99207811,1539.7,1539.3,0.58984624]
[1674058316719,42.48689811,1539.7,1539.3,0.58984624]
[1674058317318,48.98171811,1539.7,1539.1,3.0]
[1674058317527,48.98171811,1539.7,1539.1,0.58984624]
[1674058317528,49.41891811,1539.7,1539.1,0.58984624]
[1674058317739,49.41891811,1539.7,1538.9,1.0]
[1674058317999,53.48689139,1539.7,1539.1,0.58984624]
[1674058318170,49.41891811,1539.7,1539.1,0.58984624]
[1674058318389,1.76953871,1539.0,1538.9,0.066]
[1674058318578,1.76953871,1539.0,1538.9,0.014]
[1674058318579,8.26725871,1539.0,1538.9,0.014]
[1674058318788,8.33325871,1539.0,1538.7,0.0086662]
[1674058319060,14.83097871,1539.0,1538.7,0.0086662]
[1674058319223,1.83553871,1539.0,1538.7,0.0086662]
[1674058319441,25.2821,1538.9,1538.7,0.0086662]
[1674058319628,25.3481,1538.9,1538.7,0.0086662]
[1674058320503,25.3481,1538.9,1538.7,0.59851244]
[1674058320835,25.3481,1538.9,1538.7,0.0086662]
[1674058321044,38.83218,1538.9,1538.7,0.0086662]
[1674058321275,31.84639,1538.9,1538.7,0.0086662]
[1674058321625,38.34453,1538.9,1538.7,0.0086662]
[1674058322092,13.48464,1538.8,1538.6,0.13718363]
[1674058322265,12.99798,1538.7,1538.6,0.13718363]
[1674058322472,0.137,1538.6,1538.0,0.066]
[1674058322704,0.4876,1538.5,1537.5,6.50402]
[1674058322933,31.82873,1538.4,1537.9,0.58984624]
[1674058323101,38.39516,1538.4,1538.0,0.58984624]
[1674058323321,38.39516,1538.4,1537.6,1.066]
[1674058323322,38.39516,1538.4,1537.6,1.0]
[1674058323588,42.44872792,1538.4,1537.7,0.51022865]
[1674058323794,5.54126792,1538.3,1537.4,0.066]
[1674058324063,19.50723,1537.9,1537.0,0.29051603]
[1674058324218,19.50723,1537.9,1537.0,0.16651603]
[1674058324219,29.24556259,1537.8,1537.0,0.16651603]
[1674058324433,29.24556259,1537.8,1537.0,6.67051603]
[1674058324434,25.8821,1537.8,1537.0,6.67051603]
[1674058324704,25.3943,1537.8,1537.1,6.50566]
[1674058324835,25.3943,1537.8,1537.2,1.0]
[1674058325048,31.89751,1537.8,1537.1,0.066]
[1674058325253,31.89751,1537.8,1537.0,0.16451603]
[1674058325529,0.4879,1537.7,1537.0,0.16451603]
[1674058325836,6.99147,1537.7,1537.0,0.16451603]
[1674058326052,0.066,1537.7,1537.0,6.67062603]
[1674058326361,31.89714,1537.8,1537.1,0.678581]
[1674058326584,31.89714,1537.8,1537.1,0.0007958]
[1674058326585,0.4879,1537.7,1537.1,0.0007958]
[1674058326745,13.0082,1537.5,1537.0,0.16451603]
[1674058326936,0.066,1537.5,1537.0,0.16451603]
[1674058327143,0.066,1537.7,1537.1,0.02332589]
[1674058327357,25.3943,1537.8,1537.1,1.02165454]
[1674058327580,25.3943,1537.8,1537.2,7.01536865]
[1674058327828,25.3943,1537.8,1537.3,0.8]
[1674058327985,25.3943,1537.8,1537.3,10.8382915]
[1674058328197,25.3943,1537.8,1537.4,0.51022865]
[1674058328406,22.06288547,1537.8,1537.4,0.51022865]
[1674058328616,0.066,1537.8,1537.5,0.02331983]
[1674058328881,11.8429096,1538.3,1537.6,6.50364]
[1674058329039,7.8477,1538.3,1537.6,7.07986865]
[1674058329264,0.066,1538.3,1537.7,0.53354545]
[1674058329461,6.50001,1538.5,1537.7,7.03644545]
[1674058329462,6.56601,1538.5,1537.7,7.03644545]
[1674058329682,6.56601,1538.5,1537.7,0.0893168]
[1674058329683,6.50079,1538.3,1537.7,0.0893168]
[1674058329891,6.56679,1538.3,1537.7,3.0233168]
[1674058330143,6.56679,1538.3,1537.7,0.0233168]
[1674058330361,4.0612096,1538.2,1537.5,0.066]
[1674058330513,19.50597,1538.0,1537.2,0.066]
[1674058330718,19.50597,1538.0,1537.1,7.3215]
[1674058330719,4.5490096,1537.9,1537.1,0.066]
[1674058330929,19.50978,1537.7,1537.0,1.16451603]
[1674058331189,13.00866,1537.5,1537.0,1.16451603]
[1674058331361,17.1358696,1537.5,1537.0,0.16451603]
[1674058331803,19.51497,1537.3,1537.0,0.16451603]
[1674058332016,19.51725,1537.1,1537.0,0.16451603]
[1674058332245,23.6444596,1537.1,1536.7,0.17797584]
[1674058332467,0.4881,1537.0,1536.7,0.17797584]
[1674058332837,3.8641,1537.0,1536.3,0.1708639]
[1674058333280,0.4881,1537.0,1536.3,0.1708639]
[1674058333445,13.0132,1536.9,1536.3,0.1708639]
[1674058333660,0.4882,1536.8,1536.3,0.1708639]
[1674058334525,0.4882,1536.8,1536.4,0.51022865]
[1674058334730,0.4882,1536.8,1536.3,0.1708639]
[1674058334731,0.066,1536.9,1536.3,0.1708639]
[1674058334940,23.2986,1537.0,1536.4,0.51022865]
[1674058335136,23.2986,1537.0,1536.4,7.01889865]
[1674058335389,0.066,1537.0,1536.5,6.99634]
[1674058335555,23.2326,1537.5,1536.6,13.01553]
[1674058335769,0.04917,1537.4,1536.7,0.4882]
[1674058336035,0.04917,1537.4,1536.8,6.50678]
[1674058336184,0.04917,1537.4,1536.9,3.0]
[1674058336397,0.04917,1537.4,1536.9,10.00329959]
[1674058336714,28.3474776,1538.0,1537.0,0.98500959]
[1674058336962,0.04917,1537.9,1537.0,1.4881]
[1674058337177,4.0853317,1537.9,1537.0,0.49690959]
[1674058337341,0.4878,1537.8,1536.8,0.126]
[1674058337552,0.4878,1537.8,1536.6,1.06]
[1674058337553,1.0,1537.6,1536.6,1.06]
[1674058337884,4.57932288,1537.5,1536.6,1.0]
[1674058338095,4.57932288,1537.5,1536.5,0.56290959]
[1674058338096,4.09388449,1537.4,1536.5,0.56290959]
[1674058338433,4.09388449,1537.4,1536.3,0.1708639]
[1674058338434,19.51689,1537.2,1536.3,0.1708639]
[1674058338644,19.52031,1536.9,1536.3,0.1708639]
[1674058338858,19.52291,1536.7,1536.3,0.1708639]
[1674058339035,19.58891,1536.7,1536.3,0.1708639]
[1674058339248,13.08125,1536.7,1536.3,0.1708639]
[1674058339513,6.57359,1536.7,1536.3,0.1708639]
[1674058339664,0.066,1536.7,1536.3,0.1708639]
[1674058339873,0.066,1537.0,1536.3,0.1708639]
[1674058340137,1.8191,1537.1,1536.3,0.1708639]
[1674058340360,1.7531,1537.1,1536.4,0.48411275]
[1674058340575,6.50629,1537.0,1536.4,0.48411275]
[1674058340871,11.11300493,1537.0,1536.4,0.48411275]
[1674058341086,11.11300493,1537.0,1536.3,0.1708639]
[1674058341087,4.05261493,1536.9,1536.3,0.1708639]
[1674058341277,0.4882,1536.8,1536.3,0.1708639]
[1674058341491,29.0952096,1536.8,1536.3,0.1708639]
[1674058341679,25.1,1536.8,1536.3,0.1708639]
[1674058341885,0.71718322,1536.1,1535.9,1.1147787]
[1674058342400,0.71718322,1536.1,1535.8,0.18774723]
[1674058342655,0.4884,1536.0,1535.8,0.18774723]
[1674058342980,0.4884,1536.0,1535.6,3.20727718]
[1674058343153,0.4884,1536.0,1535.3,3.26325879]
[1674058343154,1.4884,1536.0,1535.3,3.26325879]
[1674058343360,1.4884,1536.0,1535.2,0.26080698]
[1674058343361,5.57576594,1536.0,1535.6,3.24134869]
[1674058343568,3.0,1535.9,1535.5,3.25983483]
[1674058343922,1.5544,1536.0,1535.4,0.066]
[1674058343923,0.4885,1535.8,1535.4,3.24579684]
[1674058344136,1.4885,1535.9,1535.5,3.25983483]
[1674058344289,1.4885,1535.9,1535.3,3.66558985]
[1674058344498,1.4885,1535.9,1535.3,3.20387147]
[1674058344748,1.0,1535.8,1535.3,3.20387147]
[1674058345199,0.066,1536.0,1535.5,3.27175792]
[1674058345507,0.71718322,1536.1,1535.5,3.27175792]
[1674058345658,7.22737322,1536.1,1535.7,3.28952369]
[1674058345866,7.78177322,1536.1,1535.7,3.28952369]
[1674058346548,7.78177322,1536.1,1535.6,3.21434551]
[1674058346719,13.02184,1535.9,1535.4,3.29502962]
[1674058346927,0.4885,1535.8,1535.4,3.29502962]
[1674058347138,0.4885,1535.8,1535.3,0.066]
[1674058347139,2.41294349,1535.6,1535.3,3.21761877]
[1674058347501,2.41294349,1535.6,1535.5,3.29790752]
[1674058347868,1.72754349,1535.6,1535.5,3.29790752]
[1674058348088,1.72754349,1535.6,1535.5,6.7596259]
[1674058348304,0.40654349,1535.6,1535.5,3.8256259]
[1674058348664,0.40654349,1535.6,1535.4,4.26271751]
[1674058349262,0.4886,1535.5,1535.4,4.26271751]
[1674058349586,0.4886,1535.5,1535.4,1.85946878]
[1674058349765,0.4886,1535.5,1535.3,3.25506595]
[1674058350624,2.8596,1535.5,1535.3,3.25506595]
[1674058350952,2.8596,1535.5,1533.8,7.0141555]
[1674058350953,5.47429951,1535.5,1534.8,3.29229508]
[1674058351115,5.0,1535.4,1535.2,3.24359003]
[1674058351325,5.0,1535.4,1534.6,0.006]
[1674058351326,7.42,1535.4,1534.6,3.25473179]
[1674058351535,7.42,1535.4,1534.9,3.20573012]
[1674058351536,17.58843,1535.1,1534.9,3.20573012]
[1674058351783,17.58843,1535.1,1534.5,0.18160008]
[1674058351784,4.62262348,1535.1,1535.0,0.03546043]
[1674058352118,0.066,1535.2,1535.0,3.82707232]
[1674058352272,5.066,1535.5,1535.0,3.82707232]
[1674058352486,5.066,1535.5,1535.2,3.29036044]
[1674058352700,0.09,1536.0,1535.4,18.27840947]
[1674058352905,0.71718322,1536.1,1535.6,3.20759581]
[1674058353157,0.71718322,1536.1,1535.7,13.22079287]
[1674058353336,0.71718322,1536.1,1535.7,14.56398973]
[1674058353576,0.71718322,1536.1,1535.7,7.60666236]
[1674058353794,0.71718322,1536.1,1535.7,3.28692287]
[1674058354115,0.71718322,1536.1,1535.9,3.0]
[1674058355376,0.71718322,1536.1,1536.0,1.0]
[1674058355599,0.71718322,1536.1,1536.0,4.0]
[1674058355744,8.322e-05,1536.1,1536.0,15.4884]
[1674058355956,8.322e-05,1536.1,1536.0,16.82327186]
[1674058356304,0.066,1536.8,1536.2,19.5282]
[1674058356637,24.233,1537.2,1536.4,6.50868]
[1674058356793,0.066,1537.2,1536.5,3.0]
[1674058357001,0.04682017,1537.7,1536.5,3.0]
[1674058357002,0.04682017,1537.7,1537.1,15.0]
[1674058357259,0.09599017,1537.7,1537.1,13.25776511]
[1674058357492,0.09599017,1537.7,1537.1,11.33488526]
[1674058357645,0.09599017,1537.7,1537.1,8.6618049]
[1674058357853,0.4879,1537.6,1537.1,8.6618049]
[1674058358380,1.09599017,1537.7,1537.1,0.066]
[1674058358381,1.58389017,1537.7,1537.1,0.066]
[1674058358593,5.89971017,1537.7,1536.9,6.50655]
[1674058358805,5.96571017,1537.7,1537.0,3.4881]
[1674058359015,5.96571017,1537.7,1537.0,0.4881]
[1674058359262,5.96571017,1537.7,1537.1,1.0]
[1674058359263,0.11282017,1537.7,1537.1,1.0]
[1674058359433,0.11282017,1537.7,1537.2,0.488]
[1674058359434,0.04682017,1537.7,1537.2,0.488]